[Event "NJSK 2026 Meisjes C"]
[Site "Helmond, Netherlands"]
[Date "2026.04.30"]
[Round "6.8"]
[White "Barbier, Sarah"]
[Black "Urban, Hannah"]
[Result "1/2-1/2"]
[TimeControl "90min/40moves + 30min + 30sec/move"]
[WhiteTitle "-"]
[BlackTitle "-"]
[WhiteFideId "1095420"]
[BlackFideId "40109364"]
[WhiteElo "1487"]
[BlackElo "1438"]

1. e4 {[%clk 01:30:59]} {[%emt 00:00:01]} c5 {[%clk 01:30:54]} {[%emt
00:00:06]} 2. Nf3 {[%clk 01:31:23]} {[%emt 00:00:07]} g6 {[%clk 01:31:13]}
{[%emt 00:00:14]} 3. Bc4 {[%clk 01:31:39]} {[%emt 00:00:11]} Bg7 {[%clk
01:31:09]} {[%emt 00:00:33]} 4. c3 {[%clk 01:31:36]} {[%emt 00:00:34]} e6
{[%clk 01:29:27]} {[%emt 00:02:11]} 5. d4 {[%clk 01:30:51]} {[%emt 00:01:16]}
cxd4 {[%clk 01:28:33]} {[%emt 00:01:24]} 6. cxd4 {[%clk 01:31:00]} {[%emt
00:00:21]} Ne7 {[%clk 01:28:37]} {[%emt 00:00:26]} 7. O-O {[%clk 01:29:00]}
{[%emt 00:02:29]} d5 {[%clk 01:26:30]} {[%emt 00:02:37]} 8. exd5 {[%clk
01:28:45]} {[%emt 00:00:46]} Nxd5 {[%clk 01:26:36]} {[%emt 00:00:23]} 9. Nc3
{[%clk 01:25:37]} {[%emt 00:03:38]} Nb6 {[%clk 01:24:28]} {[%emt 00:02:39]} 10.
Bb3 {[%clk 01:25:02]} {[%emt 00:01:04]} O-O {[%clk 01:24:11]} {[%emt 00:00:48]}
11. Bg5 {[%clk 01:22:43]} {[%emt 00:02:46]} Qe8 {[%clk 01:20:30]} {[%emt
00:04:12]} 12. Re1 {[%clk 01:20:11]} {[%emt 00:03:01]} Bd7 {[%clk 01:15:53]}
{[%emt 00:05:08]} 13. d5 {[%clk 01:16:29]} {[%emt 00:04:12]} e5 {[%clk
01:12:09]} {[%emt 00:04:14]} 14. Nxe5 {[%clk 01:07:36]} {[%emt 00:09:23]} Qc8
{[%clk 01:10:16]} {[%emt 00:02:23]} 15. Rc1 {[%clk 01:04:42]} {[%emt 00:03:24]}
f6 {[%clk 01:08:07]} {[%emt 00:02:39]} 16. Nc6 {[%clk 00:50:41]} {[%emt
00:14:30]} bxc6 {[%clk 01:05:42]} {[%emt 00:02:54]} 17. dxc6+ {[%clk 00:49:31]}
{[%emt 00:01:41]} Kh8 {[%clk 01:05:56]} {[%emt 00:00:16]} 18. cxd7 {[%clk
00:49:49]} {[%emt 00:00:11]} Qxd7 {[%clk 01:05:19]} {[%emt 00:01:07]} 19. Qxd7
{[%clk 00:49:47]} {[%emt 00:00:33]} N8xd7 {[%clk 01:05:35]} {[%emt 00:00:14]}
20. Be3 {[%clk 00:49:34]} {[%emt 00:00:42]} Ne5 {[%clk 01:04:10]} {[%emt
00:01:55]} 21. Rcd1 {[%clk 00:49:38]} {[%emt 00:00:27]} Rfd8 {[%clk 01:01:47]}
{[%emt 00:02:53]} 22. Nd5 {[%clk 00:39:24]} {[%emt 00:10:44]} Nxd5 {[%clk
01:01:39]} {[%emt 00:00:39]} 23. Rxd5 {[%clk 00:39:01]} {[%emt 00:00:52]} Nd3
{[%clk 01:01:22]} {[%emt 00:00:47]} 24. Rd1 {[%clk 00:39:06]} {[%emt 00:00:25]}
Rxd5 {[%clk 01:01:25]} {[%emt 00:00:29]} 25. Bxd5 {[%clk 00:38:25]} {[%emt
00:01:10]} Nxb2 {[%clk 01:01:05]} {[%emt 00:00:48]} 26. Bxa8 {[%clk 00:36:27]}
{[%emt 00:02:29]} Nxd1 {[%clk 01:01:14]} {[%emt 00:00:21]} 27. Bxa7 {[%clk
00:36:51]} {[%emt 00:00:06]} Bf8 {[%clk 01:01:31]} {[%emt 00:00:13]} 28. a4
{[%clk 00:36:13]} {[%emt 00:01:08]} Kg7 {[%clk 01:01:23]} {[%emt 00:00:37]} 29.
a5 {[%clk 00:36:06]} {[%emt 00:00:38]} Nc3 {[%clk 00:55:32]} {[%emt 00:06:22]}
30. Bc6 {[%clk 00:36:10]} {[%emt 00:00:25]} Na2 {[%clk 00:54:46]} {[%emt
00:01:17]} 31. Bb6 {[%clk 00:33:55]} {[%emt 00:02:45]} Nb4 {[%clk 00:54:59]}
{[%emt 00:00:17]} 32. Bb7 {[%clk 00:33:54]} {[%emt 00:00:30]} h5 {[%clk
00:55:11]} {[%emt 00:00:19]} 33. f3 {[%clk 00:33:55]} {[%emt 00:00:28]} Be7
{[%clk 00:55:21]} {[%emt 00:00:21]} 34. Kf2 {[%clk 00:33:41]} {[%emt 00:00:44]}
Kf7 {[%clk 00:55:24]} {[%emt 00:00:27]} 35. Ke3 {[%clk 00:32:57]} {[%emt
00:01:12]} Ke6 {[%clk 00:54:44]} {[%emt 00:01:11]} 36. Kd4 {[%clk 00:32:48]}
{[%emt 00:00:39]} Kd7 {[%clk 00:54:25]} {[%emt 00:00:50]} 37. a6 {[%clk
00:25:29]} {[%emt 00:07:49]} Nxa6 {[%clk 00:51:55]} {[%emt 00:03:00]} 38. Bxa6
{[%clk 00:25:48]} {[%emt 00:00:10]} Ke8 {[%clk 00:51:55]} {[%emt 00:00:30]} 39.
Bc4 {[%clk 00:25:44]} {[%emt 00:00:34]} Bd6 {[%clk 00:51:45]} {[%emt 00:00:40]}
40. h3 {[%clk 00:25:56]} {[%emt 00:00:19]} Kf8 {[%clk 00:51:36]} {[%emt
00:00:38]} 41. Bc5 {[%clk 00:26:10]} {[%emt 00:00:16]} Bxc5+ {[%clk 00:51:56]}
{[%emt 00:00:10]} 42. Kxc5 {[%clk 00:26:36]} {[%emt 00:00:04]} Kg7 {[%clk
00:51:59]} {[%emt 00:00:27]} 43. h4 {[%clk 00:26:45]} {[%emt 00:00:21]} g5
{[%clk 00:51:48]} {[%emt 00:00:41]} 44. hxg5 {[%clk 00:27:03]} {[%emt
00:00:11]} fxg5 {[%clk 00:52:12]} {[%emt 00:00:07]} 45. Kd5 {[%clk 00:27:21]}
{[%emt 00:00:12]} Kf6 {[%clk 00:52:21]} {[%emt 00:00:22]} 46. Ke4 {[%clk
00:27:32]} {[%emt 00:00:18]} Kg6 {[%clk 00:51:53]} {[%emt 00:00:58]} 47. Bf7+
{[%clk 00:26:48]} {[%emt 00:01:14]} Kxf7 {[%clk 00:51:47]} {[%emt 00:00:37]} 48.
Kf5 {[%clk 00:27:10]} {[%emt 00:00:07]} g4 {[%clk 00:52:00]} {[%emt 00:00:17]}
49. fxg4 {[%clk 00:27:34]} {[%emt 00:00:06]} hxg4 {[%clk 00:52:24]} {[%emt
00:00:06]} 50. Kxg4 {[%clk 00:28:01]} {[%emt 00:00:03]} Kg8 {[%clk 00:52:45]}
{[%emt 00:00:09]} 51. Kg5 {[%clk 00:28:13]} {[%emt 00:00:17]} Kf7 {[%clk
00:52:31]} {[%emt 00:00:45]} 52. g3 {[%clk 00:27:50]} {[%emt 00:00:54]} Kf8
{[%clk 00:52:41]} {[%emt 00:00:20]} 53. Kg6 {[%clk 00:28:04]} {[%emt 00:00:15]}
Kg8 {[%clk 00:53:02]} {[%emt 00:00:09]} 54. g4 {[%clk 00:28:12]} {[%emt
00:00:22]} Kh8 {[%clk 00:53:15]} {[%emt 00:00:17]} 55. Kf7 {[%clk 00:27:46]}
{[%emt 00:00:55]} Kh7 {[%clk 00:53:33]} {[%emt 00:00:13]} 56. g5 {[%clk
00:28:12]} {[%emt 00:00:04]} Kh8 {[%clk 00:53:50]} {[%emt 00:00:13]} 57. Kf6
{[%clk 00:27:07]} {[%emt 00:01:34]} Kh7 {[%clk 00:54:07]} {[%emt 00:00:14]} 58.
g6+ {[%clk 00:26:34]} {[%emt 00:01:03]} Kh8 {[%clk 00:54:17]} {[%emt 00:00:20]}
59. Kg5 {[%clk 00:25:54]} {[%emt 00:01:10]} Kg8 {[%clk 00:54:10]} {[%emt
00:00:37]} 60. Kf4 {[%clk 00:23:30]} {[%emt 00:02:51]} Kf8 {[%clk 00:54:01]}
{[%emt 00:00:41]} 61. Kf5 {[%clk 00:21:37]} {[%emt 00:02:24]} Kg7 {[%clk
00:53:26]} {[%emt 00:01:05]} 62. Kg5 {[%clk 00:21:45]} {[%emt 00:00:22]} Kg8
{[%clk 00:53:40]} {[%emt 00:00:16]} 63. Kh6 {[%clk 00:21:45]} {[%emt 00:00:29]}
Kh8 {[%clk 00:53:59]} {[%emt 00:00:12]} 1/2-1/2

[Event "NJSK 2026 Meisjes C"]
[Site "Helmond, Netherlands"]
[Date "2026.05.01"]
[Round "7.1"]
[White "Ngangbam, Malem"]
[Black "Ganeshram, Niranjana"]
[Result "1-0"]
[TimeControl "90min/40moves + 30min + 30sec/move"]
[WhiteTitle "-"]
[BlackTitle "-"]
[WhiteFideId "40102343"]
[BlackFideId "40100480"]
[WhiteElo "1600"]
[BlackElo "1753"]

1. e4 {[%clk 01:30:56]} {[%emt 00:00:03]} e5 {[%clk 01:30:56]} {[%emt
00:00:04]} 2. Nf3 {[%clk 01:31:22]} {[%emt 00:00:05]} Nc6 {[%clk 01:31:23]}
{[%emt 00:00:03]} 3. Bc4 {[%clk 01:31:45]} {[%emt 00:00:07]} Bc5 {[%clk
01:31:50]} {[%emt 00:00:03]} 4. c3 {[%clk 01:31:59]} {[%emt 00:00:16]} Nf6
{[%clk 01:32:16]} {[%emt 00:00:04]} 5. b4 {[%clk 01:32:18]} {[%emt 00:00:10]}
Bb6 {[%clk 01:32:40]} {[%emt 00:00:07]} 6. d3 {[%clk 01:32:38]} {[%emt
00:00:09]} d6 {[%clk 01:32:00]} {[%emt 00:01:10]} 7. Nbd2 {[%clk 01:32:03]}
{[%emt 00:01:05]} O-O {[%clk 01:30:13]} {[%emt 00:02:17]} 8. O-O {[%clk
01:31:56]} {[%emt 00:00:38]} Bg4 {[%clk 01:30:02]} {[%emt 00:00:41]} 9. h3
{[%clk 01:31:18]} {[%emt 00:01:06]} Bh5 {[%clk 01:30:04]} {[%emt 00:00:30]} 10.
Re1 {[%clk 01:29:15]} {[%emt 00:02:33]} Qd7 {[%clk 01:27:30]} {[%emt 00:03:05]}
11. Nf1 {[%clk 01:28:03]} {[%emt 00:01:41]} Rad8 {[%clk 01:25:54]} {[%emt
00:02:06]} 12. Bg5 {[%clk 01:26:38]} {[%emt 00:01:55]} Kh8 {[%clk 01:17:50]}
{[%emt 00:08:34]} 13. Ng3 {[%clk 01:25:55]} {[%emt 00:01:12]} Bg6 {[%clk
01:14:40]} {[%emt 00:03:41]} 14. Nh4 {[%clk 01:21:02]} {[%emt 00:05:22]} Rde8
{[%clk 01:10:29]} {[%emt 00:04:41]} 15. Qf3 {[%clk 01:01:24]} {[%emt 00:20:06]}
Ng8 {[%clk 01:08:01]} {[%emt 00:03:01]} 16. Nhf5 {[%clk 01:00:12]} {[%emt
00:01:42]} Nce7 {[%clk 01:04:49]} {[%emt 00:03:42]} 17. h4 {[%clk 00:53:03]}
{[%emt 00:07:38]} Bxf5 {[%clk 01:03:00]} {[%emt 00:02:18]} 18. exf5 {[%clk
00:53:09]} {[%emt 00:00:25]} d5 {[%clk 01:01:27]} {[%emt 00:02:03]} 19. f6
{[%clk 00:23:55]} {[%emt 00:29:44]} Nxf6 {[%clk 00:48:56]} {[%emt 00:13:02]} 20.
Bxf6 {[%clk 00:24:10]} {[%emt 00:00:14]} gxf6 {[%clk 00:46:40]} {[%emt
00:02:47]} 21. Qxf6+ {[%clk 00:24:27]} {[%emt 00:00:12]} Kg8 {[%clk 00:46:49]}
{[%emt 00:00:21]} 22. Rxe5 {[%clk 00:21:56]} {[%emt 00:03:02]} Qd6 {[%clk
00:38:21]} {[%emt 00:09:00]} 23. Nh5 {[%clk 00:19:05]} {[%emt 00:03:20]} Qxf6
{[%clk 00:32:48]} {[%emt 00:06:03]} 24. Nxf6+ {[%clk 00:19:24]} {[%emt
00:00:11]} Kh8 {[%clk 00:33:05]} {[%emt 00:00:13]} 25. Nxe8 {[%clk 00:19:33]}
{[%emt 00:00:20]} dxc4 {[%clk 00:30:41]} {[%emt 00:02:56]} 26. Rxe7 {[%clk
00:19:45]} {[%emt 00:00:17]} cxd3 {[%clk 00:30:53]} {[%emt 00:00:19]} 27. Rd1
{[%emt 00:00:54]} c5 {[%clk 00:30:49]} 28. Rxd3 {[%clk 00:20:11]} {[%emt
00:00:13]} c4 {[%clk 00:30:52]} {[%emt 00:00:27]} 29. Rdd7 {[%clk 00:20:08]}
{[%emt 00:00:33]} a5 {[%clk 00:30:25]} {[%emt 00:00:58]} 30. Nf6 {[%clk
00:18:23]} {[%emt 00:02:14]} Kg7 {[%clk 00:29:59]} {[%emt 00:00:57]} 31. Nh5+
{[%clk 00:17:07]} {[%emt 00:01:45]} Kh6 {[%clk 00:30:19]} {[%emt 00:00:10]} 32.
Rd6+ {[%clk 00:17:20]} {[%emt 00:00:17]} Kxh5 {[%clk 00:30:39]} {[%emt
00:00:10]} 33. Rxb6 {[%clk 00:17:28]} {[%emt 00:00:22]} axb4 {[%clk 00:30:55]}
{[%emt 00:00:14]} 34. Rxb4 {[%clk 00:17:50]} {[%emt 00:00:08]} Ra8 {[%clk
00:31:02]} {[%emt 00:00:23]} 35. a4 {[%clk 00:18:04]} {[%emt 00:00:17]} Rc8
{[%clk 00:31:08]} {[%emt 00:00:24]} 36. Rxf7 {[%clk 00:18:20]} {[%emt
00:00:13]} Kxh4 {[%clk 00:31:35]} {[%emt 00:00:03]} 37. Rb5 {[%clk 00:18:29]}
{[%emt 00:00:21]} Rg8 {[%clk 00:31:41]} {[%emt 00:00:24]} 38. Rf4+ {[%clk
00:18:51]} {[%emt 00:00:08]} Rg4 {[%clk 00:32:06]} {[%emt 00:00:06]} 39. g3+
{[%clk 00:19:15]} {[%emt 00:00:05]} Kh3 {[%clk 00:32:27]} {[%emt 00:00:10]} 40.
Rh5+ {[%clk 00:19:41]} {[%emt 00:00:04]} Rh4 {[%clk 00:32:32]} {[%emt
00:00:25]} 41. Rfxh4# {[%clk 00:20:01]} {[%emt 00:00:08]} 1-0

[Event "NJSK 2026 Meisjes C"]
[Site "Helmond, Netherlands"]
[Date "2026.05.01"]
[Round "7.2"]
[White "Luong, Thao"]
[Black "De Koning, Mila"]
[Result "1-0"]
[TimeControl "90min/40moves + 30min + 30sec/move"]
[WhiteTitle "-"]
[BlackTitle "-"]
[WhiteFideId "1091980"]
[BlackFideId "40108694"]
[WhiteElo "1855"]
[BlackElo "1638"]

1. e4 {[%clk 01:30:39]} {[%emt 00:00:20]} e6 {[%clk 01:30:40]} {[%emt
00:00:21]} 2. d4 {[%clk 01:31:04]} {[%emt 00:00:05]} d5 {[%clk 01:31:06]}
{[%emt 00:00:03]} 3. Nc3 {[%clk 01:31:29]} {[%emt 00:00:06]} Nf6 {[%clk
01:31:26]} {[%emt 00:00:10]} 4. e5 {[%clk 01:31:54]} {[%emt 00:00:05]} Nfd7
{[%clk 01:31:41]} {[%emt 00:00:14]} 5. Nce2 {[%clk 01:32:15]} {[%emt 00:00:09]}
c5 {[%clk 01:30:45]} {[%emt 00:01:27]} 6. c3 {[%clk 01:32:37]} {[%emt
00:00:07]} Nc6 {[%clk 01:30:51]} {[%emt 00:00:24]} 7. f4 {[%clk 01:33:00]}
{[%emt 00:00:07]} cxd4 {[%clk 01:27:35]} {[%emt 00:03:46]} 8. cxd4 {[%clk
01:33:18]} {[%emt 00:00:12]} Qa5+ {[%clk 01:22:27]} {[%emt 00:05:38]} 9. Nc3
{[%clk 01:24:24]} {[%emt 00:09:24]} Bb4 {[%clk 01:12:46]} {[%emt 00:10:12]} 10.
Nge2 {[%clk 01:04:08]} {[%emt 00:20:45]} f6 {[%clk 00:52:30]} {[%emt 00:20:46]}
11. Bd2 {[%clk 00:52:56]} {[%emt 00:11:43]} fxe5 {[%clk 00:43:41]} {[%emt
00:09:19]} 12. fxe5 {[%clk 00:52:19]} {[%emt 00:01:06]} O-O {[%clk 00:36:05]}
{[%emt 00:08:07]} 13. a3 {[%clk 00:50:16]} {[%emt 00:02:33]} Bxc3 {[%clk
00:30:34]} {[%emt 00:06:01]} 14. bxc3 {[%clk 00:50:06]} {[%emt 00:00:39]} Qd8
{[%clk 00:29:42]} {[%emt 00:01:22]} 15. Nf4 {[%clk 00:45:44]} {[%emt 00:04:52]}
Qe7 {[%clk 00:21:04]} {[%emt 00:09:09]} 16. Bd3 {[%clk 00:37:50]} {[%emt
00:08:24]} Nb6 {[%clk 00:13:58]} {[%emt 00:07:38]} 17. Bxh7+ {[%clk 00:33:49]}
{[%emt 00:04:31]} Kxh7 {[%clk 00:10:14]} {[%emt 00:04:13]} 18. Qh5+ {[%clk
00:34:12]} {[%emt 00:00:08]} Kg8 {[%clk 00:10:34]} {[%emt 00:00:10]} 19. Ng6
{[%clk 00:34:28]} {[%emt 00:00:14]} Qd8 {[%clk 00:06:25]} {[%emt 00:04:39]} 20.
Qh8+ {[%clk 00:33:57]} {[%emt 00:01:01]} Kf7 {[%clk 00:06:42]} {[%emt
00:00:13]} 21. Nxf8 {[%clk 00:34:22]} {[%emt 00:00:05]} Ne7 {[%clk 00:04:09]}
{[%emt 00:03:02]} 22. O-O+ {[%clk 00:32:55]} {[%emt 00:01:56]} Nf5 {[%clk
00:04:03]} {[%emt 00:00:38]} 23. Qh5+ {[%clk 00:31:10]} {[%emt 00:02:13]} Kg8
{[%clk 00:01:18]} {[%emt 00:03:12]} 24. Qh7+ {[%clk 00:22:46]} {[%emt
00:08:58]} Kf7 {[%clk 00:00:51]} {[%emt 00:00:57]} 25. Qh5+ {[%clk 00:21:20]}
{[%emt 00:01:56]} Kg8 {[%clk 00:00:48]} {[%emt 00:00:33]} 26. Ng6 {[%clk
00:21:26]} {[%emt 00:00:25]} Qc7 {[%clk 00:00:39]} {[%emt 00:00:41]} 27. g4
{[%clk 00:19:43]} {[%emt 00:02:12]} Nc4 {[%clk 00:00:37]} {[%emt 00:00:32]} 28.
gxf5 {[%clk 00:18:17]} {[%emt 00:01:55]} exf5 {[%clk 00:00:39]} {[%emt
00:00:29]} 29. Bg5 {[%clk 00:16:16]} {[%emt 00:02:30]} Be6 {[%clk 00:00:38]}
{[%emt 00:00:32]} 30. Ne7+ {[%clk 00:14:30]} {[%emt 00:02:15]} Kf8 {[%clk
00:00:54]} {[%emt 00:00:15]} 31. Qh8+ {[%clk 00:13:51]} {[%emt 00:01:08]} Kf7
{[%clk 00:01:16]} {[%emt 00:00:09]} 32. Qxa8 {[%clk 00:14:00]} {[%emt
00:00:20]} a6 {[%clk 00:01:29]} {[%emt 00:00:18]} 33. Qg8# {[%clk 00:13:51]}
{[%emt 00:00:07]} 1-0

[Event "NJSK 2026 Meisjes C"]
[Site "Helmond, Netherlands"]
[Date "2026.05.01"]
[Round "7.3"]
[White "Elangkumaran, Anumitra"]
[Black "Panzar, Emilia-Andreea"]
[Result "0-1"]
[TimeControl "90min/40moves + 30min + 30sec/move"]
[WhiteTitle "-"]
[BlackTitle "-"]
[WhiteFideId "40109070"]
[BlackFideId "42210852"]
[WhiteElo "1768"]
[BlackElo "1585"]

1. e4 {[%clk 01:30:58]} {[%emt 00:00:02]} c6 {[%clk 01:30:49]} {[%emt
00:00:12]} 2. d4 {[%clk 01:31:16]} {[%emt 00:00:11]} d5 {[%clk 01:31:09]}
{[%emt 00:00:10]} 3. exd5 {[%clk 01:31:32]} {[%emt 00:00:14]} cxd5 {[%clk
01:31:29]} {[%emt 00:00:10]} 4. c4 {[%clk 01:31:43]} {[%emt 00:00:20]} Nf6
{[%clk 01:31:40]} {[%emt 00:00:19]} 5. Nc3 {[%clk 01:31:37]} {[%emt 00:00:36]}
e6 {[%clk 01:31:35]} {[%emt 00:00:34]} 6. Nf3 {[%clk 01:31:40]} {[%emt
00:00:27]} Be7 {[%clk 01:31:44]} {[%emt 00:00:21]} 7. Bd3 {[%clk 01:27:23]}
{[%emt 00:04:47]} dxc4 {[%clk 01:31:58]} {[%emt 00:00:17]} 8. Bxc4 {[%clk
01:27:18]} {[%emt 00:00:34]} O-O {[%clk 01:30:58]} {[%emt 00:01:30]} 9. O-O
{[%clk 01:26:43]} {[%emt 00:01:06]} Nc6 {[%clk 01:30:58]} {[%emt 00:00:29]} 10.
Be3 {[%clk 01:24:38]} {[%emt 00:02:35]} b6 {[%clk 01:30:28]} {[%emt 00:01:01]}
11. Qe2 {[%clk 01:21:29]} {[%emt 00:03:38]} Ng4 {[%clk 01:25:28]} {[%emt
00:05:31]} 12. Rfd1 {[%clk 01:18:02]} {[%emt 00:03:57]} Nxe3 {[%clk 01:24:37]}
{[%emt 00:01:20]} 13. Qxe3 {[%clk 01:15:13]} {[%emt 00:03:20]} Nb4 {[%clk
01:22:20]} {[%emt 00:02:47]} 14. Qe4 {[%clk 01:08:45]} {[%emt 00:06:56]} Ba6
{[%clk 01:16:30]} {[%emt 00:06:21]} 15. Bxa6 {[%clk 00:58:56]} {[%emt
00:10:19]} Nxa6 {[%clk 01:16:50]} {[%emt 00:00:10]} 16. d5 {[%clk 00:52:53]}
{[%emt 00:06:33]} Nc5 {[%clk 01:13:44]} {[%emt 00:03:36]} 17. Qe3 {[%clk
00:49:35]} {[%emt 00:03:48]} Qc8 {[%clk 01:07:29]} {[%emt 00:06:46]} 18. Rac1
{[%clk 00:45:14]} {[%emt 00:04:51]} Qa6 {[%clk 00:59:55]} {[%emt 00:08:03]} 19.
b4 {[%clk 00:38:19]} {[%emt 00:07:26]} Na4 {[%clk 00:57:18]} {[%emt 00:03:07]}
20. dxe6 {[%clk 00:32:33]} {[%emt 00:06:15]} Nxc3 {[%clk 00:53:50]} {[%emt
00:03:58]} 21. exf7+ {[%clk 00:30:30]} {[%emt 00:02:34]} Rxf7 {[%clk 00:54:03]}
{[%emt 00:00:17]} 22. Qxc3 {[%clk 00:28:32]} {[%emt 00:02:27]} Qxa2 {[%clk
00:53:51]} {[%emt 00:00:42]} 23. Rd2 {[%clk 00:23:04]} {[%emt 00:05:59]} Qa4
{[%clk 00:50:47]} {[%emt 00:03:33]} 24. Rb1 {[%clk 00:22:20]} {[%emt 00:01:14]}
Rf4 {[%clk 00:45:01]} {[%emt 00:06:16]} 25. Qe5 {[%clk 00:17:17]} {[%emt
00:05:34]} Rf7 {[%clk 00:42:47]} {[%emt 00:02:45]} 26. Ng5 {[%clk 00:13:24]}
{[%emt 00:04:23]} Bxg5 {[%clk 00:42:14]} {[%emt 00:01:02]} 27. Qxg5 {[%clk
00:13:44]} {[%emt 00:00:11]} Rd7 {[%clk 00:37:59]} {[%emt 00:04:45]} 28. h3
{[%clk 00:09:10]} {[%emt 00:05:04]} Rad8 {[%clk 00:36:08]} {[%emt 00:02:21]} 29.
Rxd7 {[%clk 00:09:11]} {[%emt 00:00:29]} Rxd7 {[%clk 00:35:11]} {[%emt
00:01:27]} 30. Rc1 {[%clk 00:08:23]} {[%emt 00:01:19]} Rd1+ {[%clk 00:35:03]}
{[%emt 00:00:36]} 31. Rxd1 {[%clk 00:07:14]} {[%emt 00:01:39]} Qxd1+ {[%clk
00:35:00]} {[%emt 00:00:34]} 32. Kh2 {[%clk 00:07:40]} {[%emt 00:00:04]} Qd6+
{[%clk 00:34:33]} {[%emt 00:00:57]} 33. g3 {[%clk 00:07:41]} {[%emt 00:00:29]}
Qd4 {[%clk 00:29:01]} {[%emt 00:06:02]} 34. Qf5 {[%clk 00:07:17]} {[%emt
00:00:54]} Qxb4 {[%clk 00:28:19]} {[%emt 00:01:12]} 35. Qd5+ {[%clk 00:07:14]}
{[%emt 00:00:33]} Kf8 {[%clk 00:28:24]} {[%emt 00:00:24]} 36. Qa8+ {[%clk
00:07:13]} {[%emt 00:00:31]} Ke7 {[%clk 00:27:44]} {[%emt 00:01:11]} 37. Qxa7+
{[%clk 00:07:22]} {[%emt 00:00:21]} Kf6 {[%clk 00:27:32]} {[%emt 00:00:42]} 38.
Qa1+ {[%clk 00:06:41]} {[%emt 00:01:11]} Kg6 {[%clk 00:27:47]} {[%emt
00:00:15]} 39. Qe5 {[%clk 00:06:04]} {[%emt 00:01:06]} Qf8 {[%clk 00:26:15]}
{[%emt 00:02:03]} 40. Kg2 {[%clk 00:05:08]} {[%emt 00:01:26]} Qf5 {[%clk
00:24:36]} {[%emt 00:02:09]} 41. Qd6+ {[%clk 00:04:45]} {[%emt 00:00:52]} Qf6
{[%clk 00:24:36]} {[%emt 00:00:31]} 42. Qd3+ {[%clk 00:04:49]} {[%emt
00:00:26]} Qf5 {[%clk 00:23:54]} {[%emt 00:01:12]} 43. Qd6+ {[%clk 00:03:14]}
{[%emt 00:02:05]} Qf6 {[%clk 00:24:02]} {[%emt 00:00:22]} 44. Qd3+ {[%clk
00:00:49]} {[%emt 00:02:55]} Kf7 {[%clk 00:21:38]} {[%emt 00:02:54]} 45. Qxh7
{[%clk 00:28:25]} {[%emt 00:02:54]} Qc6+ {[%clk 00:51:29]} {[%emt 00:00:39]} 46.
Kf1 {[%clk 00:25:59]} {[%emt 00:02:56]} b5 {[%clk 00:51:31]} {[%emt 00:00:28]}
47. Qf5+ {[%clk 00:23:34]} {[%emt 00:02:54]} Kg8 {[%clk 00:51:32]} {[%emt
00:00:28]} 48. h4 {[%clk 00:20:25]} {[%emt 00:03:39]} Qc4+ {[%clk 00:50:42]}
{[%emt 00:01:21]} 49. Ke1 {[%clk 00:20:10]} {[%emt 00:00:45]} b4 {[%clk
00:50:34]} {[%emt 00:00:38]} 50. Qe5 {[%clk 00:19:08]} {[%emt 00:01:30]} Kf7
{[%clk 00:46:54]} {[%emt 00:04:11]} 51. Qf5+ {[%clk 00:19:02]} {[%emt
00:00:37]} Ke7 {[%clk 00:46:03]} {[%emt 00:01:21]} 52. Qg5+ {[%clk 00:16:35]}
{[%emt 00:02:57]} Kd6 {[%clk 00:44:27]} {[%emt 00:02:06]} 53. Qxg7 {[%clk
00:08:14]} {[%emt 00:08:50]} b3 {[%clk 00:43:00]} {[%emt 00:01:58]} 54. Qf8+
{[%clk 00:06:58]} {[%emt 00:01:46]} Kc7 {[%clk 00:41:49]} {[%emt 00:01:41]} 55.
Qe7+ {[%clk 00:06:49]} {[%emt 00:00:38]} Kb6 {[%clk 00:41:55]} {[%emt
00:00:25]} 56. Qd8+ {[%clk 00:06:13]} {[%emt 00:01:06]} Kb5 {[%clk 00:41:31]}
{[%emt 00:00:54]} 57. Qd2 {[%clk 00:06:09]} {[%emt 00:00:32]} Ka4 {[%clk
00:41:13]} {[%emt 00:00:50]} 58. Qb2 {[%clk 00:05:39]} {[%emt 00:00:59]} Kb4
{[%clk 00:40:44]} {[%emt 00:01:00]} 59. Kd2 {[%clk 00:05:03]} {[%emt 00:01:06]}
Qd5+ {[%clk 00:40:11]} {[%emt 00:01:03]} 60. Ke3 {[%clk 00:04:57]} {[%emt
00:00:36]} Qc5+ {[%clk 00:40:30]} {[%emt 00:00:11]} 61. Kd3 {[%clk 00:05:00]}
{[%emt 00:00:26]} Qc4+ {[%clk 00:40:46]} {[%emt 00:00:15]} 62. Kd2 {[%clk
00:05:18]} {[%emt 00:00:14]} Qc5 {[%clk 00:40:00]} {[%emt 00:01:15]} 63. Kd3
{[%clk 00:05:26]} {[%emt 00:00:21]} Ka4 {[%clk 00:38:47]} {[%emt 00:01:43]} 64.
f4 {[%clk 00:04:26]} {[%emt 00:01:30]} Qd5+ {[%clk 00:37:54]} {[%emt 00:01:23]}
65. Ke3 {[%clk 00:04:37]} {[%emt 00:00:17]} Qc5+ {[%clk 00:37:32]} {[%emt
00:00:54]} 66. Kd3 {[%clk 00:04:56]} {[%emt 00:00:11]} Kb4 {[%clk 00:36:46]}
{[%emt 00:01:16]} 67. Kd2 {[%clk 00:03:12]} {[%emt 00:02:13]} Qf2+ {[%clk
00:36:58]} {[%emt 00:00:19]} 68. Kc1 {[%clk 00:03:20]} {[%emt 00:00:22]} Qe1#
{[%clk 00:37:11]} {[%emt 00:00:17]} 0-1